[Event "41st BAN National Women Chess-ch 2022"]
[Site "Dhaka"]
[Date "2022.11.20"]
[Round "4.1"]
[White "Khan, Nazrana"]
[Black "Jannatul, Ferdous"]
[Result "1-0"]
[ECO "D20"]
[WhiteElo "1908"]
[BlackElo "1861"]
[Annotator "TA"]
[PlyCount "111"]
[EventDate "2022.11.17"]
[EventCountry "BAN"]
[SourceTitle "playchess.com"]
[Source "ChessBase"]
[SourceQuality "1"]
[TimeControl "40/5400+30:1800+30"]

{[%evp 9,111,96,89,94,177,29,45,32,35,20,42,21,58,27,48,-24,-21,-29,-17,-74,-22,-22,-25,-20,-22,-25,-25,-31,-22,-25,-35,-29,-23,-73,-66,-54,-19,-62,-64,-71,-70,-83,-102,-102,-100,-145,-142,-129,-141,-136,-129,-186,-161,-137,-8,-8,-8,-21,-8,-8,-8,-8,-8,-8,0,-81,0,0,0,0,0,0,0,0,8,8,945,760,1795,1514,2175,2074,1872,1975,29973,29971,29983,29984,29985,29986,29986,29987,29988,29989,29989,29990,29995,29989,29989,29988,29995,29996,29996,29997]} 1. d4 {[%emt 0:00:06]} d5 {[%emt 0:00:11]} 2. c4 {[%emt 0:00:07]} dxc4 {[%emt 0:00:26]} 3. e3 {[%emt 0:00:09]} Nf6 {[%emt 0:00:37]} 4. Bxc4 {[%emt 0:00:32]} e5 {[%emt 0:03:25]} 5. Qb3 {[%emt 0:06:32]} Qe7 {[%emt 0:15:30]} 6. dxe5 {[%emt 0:02:37] White is more active. D20: Queen's Gambit Accepted: 3 e3 and 3 e4.} Ng4 {[%emt 0:03:36] [#]} (6... Nfd7 $16) 7. Nf3 {[%emt 0:00:47]} ({White should play} 7. f4 $1 $18) 7... Nc6 $11 {[%emt 0:00:42]} 8. O-O {[%emt 0:04:10][%cal Oe5e6] White is slightly better.} Ngxe5 {[%emt 0:03:46]} 9. Nxe5 {[%emt 0:02:36]} Nxe5 {[%emt 0:00:22] [#]} 10. Be2 $146 {[%emt 0:00:55]} ({Predecessor:} 10. f4 Nxc4 11. Qxc4 Be6 12. Qe2 Qc5 13. b3 O-O-O 14. Bb2 Bf5 15. Rc1 Qb6 16. Bd4 Rxd4 17. exd4 Qxd4+ {0-1 (25) Bayaraa,C (2061)-Doyle,B (2209) San Francisco 2016}) 10... Qb4 {[%emt 0:05:24]} 11. Nd2 {[%emt 0:08:04]} Be6 {[%emt 0:02:02]} 12. Qxb4 {[%emt 0:02:20]} (12. Qc2 $14) 12... Bxb4 {[%emt 0:00:05]} 13. a3 {[%emt 0:03:27]} Be7 {[%emt 0:01:26]} 14. h3 {[%emt 0:04:32]} (14. Nb1 $11) 14... f5 {[%emt 0:06:24]} (14... O-O-O $17) 15. Nf3 {[%emt 0:05:07]} Nxf3+ {[%emt 0:04:28]} 16. Bxf3 {[%emt 0:04:16]} O-O-O {[%emt 0:00:08]} 17. e4 {[%emt 0:04:03]} fxe4 {[%emt 0:08:33]} 18. Bxe4 {[%emt 0:00:17]} Bd5 {[%emt 0:00:06]} 19. Bxd5 {[%emt 0:04:43]} Rxd5 {[%emt 0:00:13]} 20. Be3 {[%emt 0:03:54]} Bf6 {[%emt 0:00:59]} 21. Ra2 {[%emt 0:02:57]} (21. Rab1 $11) 21... a5 {[%emt 0:06:48]} 22. b4 {[%emt 0:01:59]} a4 {[%emt 0:05:22]} 23. g3 {[%emt 0:03:17]} Rhd8 {[%emt 0:00:52]} 24. Kg2 {[%emt 0:00:59]} Rd1 {[%emt 0:05:01]} 25. Rxd1 {[%emt 0:01:14]} Rxd1 $15 {[%emt 0:00:03][%mdl 4096] Endgame KRB-KRB} 26. Rc2 {[%emt 0:00:47]} Rd3 {[%emt 0:01:35]} 27. Bf4 {[%emt 0:02:16]} c6 {[%emt 0:08:31]} 28. Bc1 {[%emt 0:01:47]} Kd7 {[%emt 0:04:11]} 29. Kf1 {[%emt 0:00:50]} Rc3 {[%emt 0:10:26]} 30. Rxc3 {[%emt 0:01:48]} (30. Rd2+ $17 Ke6 31. Bb2) 30... Bxc3 $17 {[%emt 0:00:03] KB-KB} 31. Ke2 {[%emt 0:28:52]} b5 {[%emt 0:01:24]} (31... Bd4 $17) 32. Kd3 $1 $11 {[%emt 0:00:00]} Bf6 {[%emt 0:00:37]} 33. g4 {[%emt 0:00:00]} h6 {[%emt 0:02:05]} 34. f4 {[%emt 0:00:00]} Kd6 {[%emt 0:00:18]} 35. g5 {[%emt 0:00:00]} hxg5 {[%emt 0:00:14]} 36. fxg5 {[%emt 0:00:00]} Ba1 {[%emt 0:01:15]} 37. Ke4 {[%emt 0:00:00] [#]} (37. g6 $11 {remains equal.}) 37... Ke6 {[%emt 0:00:22]} ({Better is} 37... g6 $1 $17) 38. g6 {[%emt 0:00:00]} Bf6 {[%emt 0:01:03]} 39. Kf4 {[%emt 0:00:00]} Be5+ {[%emt 0:00:40]} 40. Kg5 {[%emt 0:00:00]} Bf6+ {[%emt 0:00:19]} 41. Kg4 {[%emt 0:19:33]} Kd5 {[%emt 0:08:30]} 42. h4 {[%emt 0:00:00][%cal Bh3h4,Bh4h5][%mdl 32] Threatens to win with Kf5.} Kc4 $2 {[%emt 0:03:20][%mdl 8192]} (42... c5 $11) 43. h5 $18 {[%emt 0:00:00]} Kb3 {[%emt 0:01:02]} 44. Kf5 {[%emt 0:00:00]} Bc3 {[%emt 0:02:33]} 45. Ke6 {[%emt 0:00:00]} Kc2 {[%emt 0:06:29]} 46. Bf4 {[%emt 0:00:00] White threatens Be5 and mate.} Kb3 {[%emt 0:04:57]} 47. h6 {[%emt 0:00:00] White mates.} gxh6 {[%emt 0:00:30]} 48. Be5 {[%emt 0:00:00]} Bxe5 {[%emt 0:00:51]} 49. Kxe5 {[%emt 0:00:00]} Kxa3 {[%emt 0:00:19] KP-KP} 50. g7 {[%emt 0:00:00]} Kb2 {[%emt 0:05:03]} 51. g8=Q {[%emt 0:00:00]} a3 {[%emt 0:00:02]} 52. Qg2+ {[%emt 0:00:00]} Kb1 {[%emt 0:00:10]} 53. Qe4+ {[%emt 0:00:00]} Kb2 {[%emt 0:00:17]} 54. Qe2+ {[%emt 0:00:00]} Kb1 {[%emt 0:00:36]} 55. Kd4 {[%emt 0:00:00]} a2 {[%emt 0:01:02]} 56. Kd3 {[%emt 0:00:00] Quite a comeback for White.  Weighted Error Value: White=0.18 (very precise) /Black=0.25 (precise)} 1-0

[Event "41st BAN National Women Chess-ch 2022"]
[Site "Dhaka"]
[Date "2022.11.20"]
[Round "4.2"]
[White "Hamid, Rani"]
[Black "Noshin, Anjum"]
[Result "1/2-1/2"]
[ECO "C54"]
[WhiteElo "1760"]
[BlackElo "1907"]
[Annotator "TA"]
[PlyCount "72"]
[EventDate "2022.11.17"]
[EventCountry "BAN"]
[SourceTitle "playchess.com"]
[Source "ChessBase"]
[SourceQuality "1"]
[TimeControl "40/5400+30:1800+30"]

{[%evp 11,72,15,24,8,8,10,10,7,4,11,22,0,0,0,34,34,34,37,34,0,0,0,14,14,14,25,22,18,25,0,0,0,9,22,65,62,62,0,64,64,62,63,63,52,53,43,46,5,38,19,59,0,24,24,29,27,33,0,0,0,0,0,0]} 1. e4 {[%emt 0:05:02]} e5 {[%emt 0:00:24]} 2. Bc4 {[%emt 0:00:35]} Nc6 {[%emt 0:01:06]} 3. Nf3 {[%emt 0:00:58]} Bc5 {[%emt 0:00:36]} 4. O-O {[%emt 0:01:15]} Nf6 {[%emt 0:00:41]} 5. d3 {[%emt 0:00:42]} h6 {[%emt 0:01:02]} 6. c3 {[%emt 0:00:20]} d6 {[%emt 0:00:15]} ({Don't take} 6... d5 7. exd5 Ne7 8. Nxe5 $16) 7. a4 {[%emt 0:03:28] C54: Giuoco Piano: 4 c3 Nf6, main lines with 5 d4 and 5 d3.} a5 {[%emt 0:00:37] Inhibits b4.} 8. h3 {[%emt 0:01:58]} O-O {[%emt 0:00:47]} 9. Re1 {[%emt 0:01:04]} Ba7 {[%emt 0:01:37]} 10. Na3 {[%emt 0:00:46]} Ne7 {[%emt 0:05:50]} 11. Bb3 {[%emt 0:05:34]} Ng6 {[%emt 0:01:19]} 12. d4 {[%emt 0:00:56] [#]} c6 $146 {[%emt 0:10:15]} ({Predecessor:} 12... Re8 13. Bc2 Be6 14. Be3 Qc8 15. Kh2 c6 16. Qd2 Bb8 17. dxe5 d5 18. exd5 Bxd5 {0-1 (60) Lobanov,S (2504)-Najer,E (2661) Moscow 2019}) 13. dxe5 {[%emt 0:16:53]} dxe5 {[%emt 0:10:11]} 14. Qxd8 {[%emt 0:01:25]} Rxd8 {[%emt 0:00:06]} 15. Be3 {[%emt 0:00:25] Prevents Bb6.} Bxe3 {[%emt 0:05:02]} 16. Rxe3 {[%emt 0:00:09]} b6 {[%emt 0:01:00]} 17. Ba2 {[%emt 0:07:32]} Ba6 {[%emt 0:05:13]} 18. Nc4 {[%emt 0:02:52]} Bxc4 {[%emt 0:04:32]} 19. Bxc4 {[%emt 0:05:43]} Ra7 {[%emt 0:03:50]} 20. Rd3 {[%emt 0:03:41]} Rxd3 {[%emt 0:15:46]} 21. Bxd3 {[%emt 0:06:22]} Rd7 {[%emt 0:00:03]} 22. Bc2 {[%emt 0:00:18]} c5 {[%emt 0:00:11]} 23. Kf1 {[%emt 0:02:28]} Kf8 {[%emt 0:00:09]} 24. Ke1 {[%emt 0:00:48]} (24. g3 $14) 24... Ke7 {[%emt 0:02:15]} ({Black should play} 24... Nf4 $1 $11) 25. g3 $14 {[%emt 0:00:53]} Ne8 {[%emt 0:01:17]} 26. h4 {[%emt 0:01:19][%cal Bh3h4,Bh4h5][%mdl 32] Hoping for h5.} f6 {[%emt 0:00:25]} 27. h5 {[%emt 0:01:43]} Nf8 {[%emt 0:00:06]} 28. Nh4 {[%emt 0:02:13]} Nd6 {[%emt 0:00:06]} 29. Rd1 {[%emt 0:01:37]} Ne6 {[%emt 0:03:31]} 30. Ke2 {[%emt 0:03:53]} c4 {[%emt 0:01:16]} 31. f3 {[%emt 0:02:20]} ({Better is} 31. f4 $1 $14) 31... Nc5 {[%emt 0:00:25]} 32. Ng2 {[%emt 0:01:03]} Kd8 {[%emt 0:05:33]} 33. Ne3 {[%emt 0:00:16]} Kc7 {[%emt 0:00:08]} 34. Nd5+ {[%emt 0:03:40]} Kc6 {[%emt 0:00:06] The position is equal.} 35. Ne3 {[%emt 0:00:16]} Kc7 {[%emt 0:01:11]} 36. Nd5+ {[%emt 0:01:06]} Kc6 {[%emt 0:00:04] Weighted Error Value: White=0.10 (very precise) /Black=0.09 (flawless)} 1/2-1/2

[Event "41st BAN National Women Chess-ch 2022"]
[Site "Dhaka"]
[Date "2022.11.20"]
[Round "4.3"]
[White "Ahmed, Walijah"]
[Black "Tasnia Tarannum, Orpa"]
[Result "1-0"]
[ECO "B04"]
[WhiteElo "1977"]
[BlackElo "1662"]
[Annotator "TA"]
[PlyCount "131"]
[EventDate "2022.11.17"]
[EventCountry "BAN"]
[SourceTitle "playchess.com"]
[Source "ChessBase"]
[SourceQuality "1"]
[TimeControl "40/5400+30:1800+30"]

{[%evp 10,131,35,-9,-9,-10,0,-53,25,18,19,22,22,20,16,16,14,11,41,20,44,19,72,80,122,123,127,127,118,121,120,95,112,105,120,120,120,121,118,114,112,112,112,100,96,100,205,205,205,205,210,215,206,202,203,195,195,138,144,97,97,98,189,95,130,431,791,712,737,737,854,615,564,8,8,8,8,8,8,0,0,0,8,8,8,0,8,8,8,8,70,161,162,168,12286,11364,12033,1432,12189,6427,5398,3175,2479,1319,1428,142,29957,6552,29980,29981,29981,29982,29982,29983,29983,29984,29984,29985,29986,29986,29986,29987,29987,29988]} 1. e4 {[%emt 0:00:05]} Nf6 {[%emt 0:00:34][%cal Bg8f6,Bf6d5,Bd5b4][%mdl 32]} 2. e5 {[%emt 0:00:17]} Nd5 {[%emt 0:00:16]} 3. d4 {[%emt 0:00:09]} d6 {[%emt 0:00:31]} 4. Nf3 {[%emt 0:01:11]} dxe5 {[%emt 0:00:07]} 5. Nxe5 {[%emt 0:02:03]} c6 {[%emt 0:01:34]} 6. c4 {[%emt 0:01:37]} Nb4 {[%emt 0:02:15][%cal Od8d4] White should prevent ...Qxd4! B04: Alekhine's Defence: 4 Nf3.} 7. Be3 {[%emt 0:06:18] a3 is the strong threat.} Bf5 $1 {[%emt 0:04:50] White must now prevent ...Nc2+.} 8. Nd3 {[%emt 0:01:42]} (8. Na3 $11) 8... e6 {[%emt 0:09:39]} (8... e5 $1 $15 9. Nxb4 Bxb4+ 10. Nc3 Qa5) 9. a3 {[%emt 0:04:22]} Nxd3+ {[%emt 0:06:58]} 10. Bxd3 {[%emt 0:00:05]} Bxd3 {[%emt 0:00:54]} 11. Qxd3 {[%emt 0:00:07] [#]} Bd6 $146 {[%emt 0:04:23]} ({Predecessor:} 11... Nd7 12. Nc3 Be7 13. O-O O-O 14. Rfd1 Nf6 15. b4 Qd7 16. Bf4 Bd6 17. Be5 Bxe5 18. dxe5 Qxd3 19. Rxd3 {1-0 (43) Ricci,M (2150)-Schwanengel,U (2103) Imperia 2006}) 12. Nc3 {[%emt 0:01:56]} Nd7 {[%emt 0:03:41]} 13. O-O {[%emt 0:03:35]} Rc8 {[%emt 0:04:53]} (13... O-O {keeps more tension.} 14. Rad1 Qh4 15. h3 Rfd8) 14. Rfd1 {[%emt 0:05:52]} Nf6 {[%emt 0:01:38]} 15. h3 {[%emt 0:04:43]} (15. d5 $5 {[%cal Rd5e6]}) 15... h6 {[%emt 0:02:21]} (15... O-O $11 {remains equal.}) 16. d5 $1 $16 {[%emt 0:04:55]} cxd5 {[%emt 0:04:56]} 17. cxd5 {[%emt 0:01:11]} Bb8 {[%emt 0:03:28]} 18. Qb5+ {[%emt 0:06:21]} Qd7 {[%emt 0:02:04]} 19. dxe6 {[%emt 0:00:40] White is more active.} Qxb5 {[%emt 0:00:21]} 20. exf7+ {[%emt 0:00:09]} Kxf7 {[%emt 0:00:24]} 21. Nxb5 {[%emt 0:00:07]} a6 {[%emt 0:00:47]} 22. Nd6+ {[%emt 0:01:13]} Bxd6 {[%emt 0:00:03]} 23. Rxd6 {[%emt 0:00:07]} Rhe8 {[%emt 0:10:19]} 24. Rb6 {[%emt 0:04:45]} Rc7 {[%emt 0:01:00]} 25. Rd1 {[%emt 0:01:30] Inhibits Nd5.} Re6 {[%emt 0:00:51]} 26. b4 {[%emt 0:06:38]} Rxb6 {[%emt 0:03:45]} 27. Bxb6 {[%emt 0:00:03]} Rd7 {[%emt 0:01:30]} (27... Rc6 $16) 28. Rxd7+ $1 $18 {[%emt 0:06:21]} Nxd7 {[%emt 0:00:02][%mdl 4096] Endgame KB-KN} 29. Bd4 {[%emt 0:00:08]} h5 {[%emt 0:02:11]} 30. f4 {[%emt 0:04:26]} g6 {[%emt 0:00:57]} 31. Kf2 {[%emt 0:02:54]} Ke6 {[%emt 0:00:54]} 32. Ke3 {[%emt 0:00:54]} Kd5 {[%emt 0:02:46]} 33. Kd3 {[%emt 0:00:26]} ({White should play} 33. g4 $18) 33... Nf8 {[%emt 0:01:41]} 34. a4 {[%emt 0:01:20]} (34. Bc3 $142) 34... Ne6 $16 {[%emt 0:02:42][%csl LRd4,LRf4]} 35. Be3 {[%emt 0:01:02]} b5 {[%emt 0:00:51]} (35... b6 $16 36. b5 axb5) 36. a5 $18 {[%emt 0:01:14]} Ng7 {[%emt 0:01:10]} 37. g4 {[%emt 0:00:49]} hxg4 {[%emt 0:00:42]} (37... Ne6 $142 38. f5 gxf5) 38. hxg4 {[%emt 0:00:04]} Ne8 {[%emt 0:00:43]} 39. Bd4 $1 {[%emt 0:02:32]} Nd6 {[%emt 0:00:38]} 40. Bg7 {[%emt 0:06:23]} Nf7 {[%emt 0:07:49] [#]} 41. f5 $2 {[%emt 0:39:50]} (41. Ke3 $1 $18 {aiming for f5.} Nd6 42. Kf3) 41... gxf5 $11 {[%emt 0:33:50]} 42. gxf5 {[%emt 0:00:05]} Nd6 {[%emt 0:00:15]} 43. f6 {[%emt 0:00:08]} Nf7 $1 {[%emt 0:00:09]} 44. Bf8 {[%emt 0:02:50]} Ne5+ {[%emt 0:00:50]} 45. Ke2 {[%emt 0:00:13]} Ke4 {[%emt 0:01:16]} 46. Be7 {[%emt 0:03:12]} Nf7 {[%emt 0:01:07]} 47. Kf2 {[%emt 0:01:36]} Kf4 {[%emt 0:03:49]} 48. Bf8 {[%emt 0:00:43]} Kf5 {[%emt 0:00:57]} 49. Ke3 {[%emt 0:00:00] Hoping for Kd4.} Ke5 {[%emt 0:00:00]} ({Black should try} 49... Kxf6 $11 50. Kd4 Ke6) 50. Bg7 $14 {[%emt 0:00:00] White leaves nothing to chance now.} Kd5 {[%emt 0:00:00]} 51. Kf4 {[%emt 0:00:00] Strongly threatening Kf5.} Nd6 {[%emt 0:00:00]} (51... Ke6 52. Ke4 Ne5) 52. Bf8 $18 {[%emt 0:00:00] Intending Bxd6 and mate.} Nf7 {[%emt 0:00:00]} 53. Kf5 {[%emt 0:00:00]} Ne5 {[%emt 0:00:00]} 54. Be7 {[%emt 0:00:00]} Nf7 {[%emt 0:00:00]} 55. Kg6 {[%emt 0:00:00]} Ke6 {[%emt 0:00:00]} 56. Kg7 {[%emt 0:00:00] Threatens to win with Bc5.} Ne5 {[%emt 0:00:00]} 57. Kf8 $2 {[%emt 0:00:00]} (57. Bc5 $18 Nf7 58. Be7) 57... Nd7+ $2 {[%emt 0:00:00][%mdl 8192] [#]} (57... Kd7 $16 58. Kg8 Ke6) 58. Ke8 $1 {[%emt 0:00:00] White threatens f7 and mate.} Nxf6+ {[%emt 0:00:00]} 59. Bxf6 {[%emt 0:00:00] White mates.} Kxf6 {[%emt 0:00:00] KPP-KPP} 60. Kd7 {[%emt 0:00:00]} Kf7 {[%emt 0:00:00]} 61. Kc6 {[%emt 0:00:00]} Ke6 {[%emt 0:00:00]} 62. Kb6 {[%emt 0:00:00]} Kd6 {[%emt 0:00:00]} 63. Kxa6 {[%emt 0:00:00]} Kc6 {[%emt 0:00:00]} 64. Ka7 {[%emt 0:00:00]} Kc7 {[%emt 0:03:41]} 65. a6 {[%emt 0:00:00]} Kc8 {[%emt 0:00:51]} 66. Kb6 {[%emt 0:00:00] Weighted Error Value: White=0.33/Black=0.29 (precise)} 1-0

[Event "41st BAN National Women Chess-ch 2022"]
[Site "Dhaka"]
[Date "2022.11.20"]
[Round "4.4"]
[White "Kazi Zarin, Tasnim"]
[Black "Nusrat Jahan, Alo"]
[Result "0-1"]
[ECO "B13"]
[WhiteElo "1860"]
[BlackElo "1710"]
[Annotator "NA RC COMBH"]
[PlyCount "78"]
[EventDate "2022.11.17"]
[EventCountry "BAN"]
[SourceTitle "playchess.com"]
[Source "ChessBase"]
[SourceQuality "1"]
[TimeControl "40/5400+30:1800+30"]

{[%evp 18,78,56,32767,32767,32767,32767,32767,32767,93,144,119,120,127,144,98,107,47,32767,32767,32767,32767,32767,32767,32767,25,32767,32767,32767,32767,32767,0,32767,0,32767,32767,32767,-191,32767,32767,32767,32767,32767,-937,-727,-471,-777,-686,-926,-1209,-2082,-2332,-1171,-786,0,-2241,-1904,-1676,-12837,-29992,-29993,-29993,-29992]} 1. e4 {[%emt 0:00:06]} c6 {[%emt 0:00:50]} 2. d4 {[%emt 0:00:08]} d5 {[%emt 0:00:14]} 3. exd5 {[%emt 0:00:07]} cxd5 {[%emt 0:00:13]} 4. Bd3 {[%emt 0:00:06]} Nf6 {[%emt 0:00:39]} 5. Bf4 {[%emt 0:00:38]} Nc6 {[%emt 0:01:37]} 6. c3 {[%emt 0:00:11]} a6 {[%emt 0:01:14]} 7. Nd2 {[%emt 0:02:22]} e6 {[%emt 0:02:22]} 8. Ngf3 {[%emt 0:01:33]} Bd6 {[%emt 0:03:39]} 9. Bxd6 {[%emt 0:00:46]} Qxd6 {[%emt 0:00:10]} 10. Qe2 {[%emt 0:00:12]} O-O {[%emt 0:02:46]} 11. O-O {[%emt 0:00:13]} b5 {[%emt 0:01:38]} 12. Ne5 {[%emt 0:01:21]} Bb7 {[%emt 0:03:00]} 13. Nb3 {[%emt 0:03:29]} Nd7 {[%emt 0:12:30]} (13... Rfb8 $142) 14. Nxd7 {[%emt 0:06:25]} ({Weaker is} 14. Qh5 g6 15. Qh3 Ndxe5 16. dxe5 Nxe5 $17) 14... Qxd7 {[%emt 0:01:44]} 15. Nc5 {[%emt 0:00:42]} Qe7 {[%emt 0:02:00]} 16. a4 {[%emt 0:07:14]} ({Don't do} 16. Qh5 g6 17. Qe2 b4 $14) (16. b4 $142) 16... b4 {[%emt 0:06:10]} 17. Nxa6 {[%emt 0:03:24]} ({Don't play} 17. Qh5 g6 18. Qe2 Rfe8 $14) (17. f4 $16) 17... Bxa6 {[%emt 0:02:35]} 18. Bxa6 {[%emt 0:00:06]} bxc3 {[%emt 0:00:40]} 19. bxc3 {[%emt 0:00:44]} Qa7 {[%emt 0:01:12]} 20. Bd3 {[%emt 0:07:05]} Na5 {[%emt 0:01:21]} 21. Bc2 {[%emt 0:02:48]} Rfc8 {[%emt 0:01:04]} 22. Qd3 {[%emt 0:01:15]} g6 {[%emt 0:00:06]} 23. f4 {[%emt 0:00:44]} Qc7 {[%emt 0:01:49]} 24. Rf3 {[%emt 0:06:17]} Rcb8 {[%emt 0:02:42]} 25. Raf1 {[%emt 0:07:56]} Nc4 {[%emt 0:09:45]} 26. Rh3 {[%emt 0:04:56]} Rb2 {[%emt 0:06:45]} 27. f5 $2 {[%emt 0:10:49]} (27. g4 $11) 27... exf5 {[%emt 0:01:52]} 28. Qd1 {[%emt 0:00:01]} Re8 {[%emt 0:01:16]} 29. Qc1 {[%emt 0:00:55]} Re2 {[%emt 0:01:39]} 30. Qh6 {[%emt 0:04:40]} Rbxc2 {[%emt 0:04:49]} 31. Qxh7+ {[%emt 0:00:09]} Kf8 {[%emt 0:00:06]} 32. Rg3 {[%emt 0:02:28]} Qd6 {[%emt 0:05:57]} 33. Qh6+ $19 {[%emt 0:02:57]} Ke7 {[%emt 0:03:36]} 34. Qg5+ {[%emt 0:00:44]} Qf6 {[%emt 0:00:42]} 35. Qf4 {[%emt 0:00:14]} Qd6 $2 {[%emt 0:01:00]} (35... Qe6 $19 36. Rh3 Nd2 37. Qc7+ Qd7 38. Qc5+ Qd6 39. Qxd6+ Kxd6) 36. Qg5+ $1 {[%emt 0:00:05]} Kd7 $142 {[%emt 0:00:11]} 37. h4 {[%emt 0:01:02]} (37. Qf4 Qxf4 38. Rxf4 Nd2) 37... Nd2 {[%emt 0:03:57]} 38. Rf4 {[%emt 0:03:38]} Rc1+ {[%emt 0:02:04]} 39. Kh2 {[%emt 0:00:09]} Nf1+ {[%emt 0:00:21]} 0-1

[Event "41st BAN National Women Chess-ch 2022"]
[Site "Dhaka"]
[Date "2022.11.20"]
[Round "4.5"]
[White "Warsia, Khusbu"]
[Black "Talukder, Umme Taslima Protiva"]
[Result "1-0"]
[ECO "B44"]
[WhiteElo "1540"]
[BlackElo "1780"]
[Annotator "NA RC COMBH"]
[PlyCount "78"]
[EventDate "2022.11.17"]
[EventCountry "BAN"]
[SourceTitle "playchess.com"]
[Source "ChessBase"]
[SourceQuality "1"]
[TimeControl "40/5400+30:1800+30"]

1. e4 {[%emt 0:01:46]} c5 {[%emt 0:00:05]} 2. Nf3 {[%emt 0:00:26]} e6 {[%emt 0:00:42]} 3. d4 {[%emt 0:00:29]} cxd4 {[%emt 0:00:16]} 4. Nxd4 {[%emt 0:00:19]} Nf6 {[%emt 0:00:27]} 5. Bd3 {[%emt 0:01:09]} Nc6 {[%emt 0:01:24]} 6. Be3 {[%emt 0:04:25]} d5 {[%emt 0:06:46]} 7. Nxc6 {[%emt 0:06:03]} bxc6 {[%emt 0:00:03]} 8. e5 {[%emt 0:00:08]} Nd7 {[%emt 0:00:14]} 9. Bf4 {[%emt 0:02:16]} Qb6 {[%emt 0:03:10]} 10. Qc1 {[%emt 0:09:15]} Qd4 {[%emt 0:04:42]} 11. O-O {[%emt 0:00:56]} Nxe5 {[%emt 0:02:57]} 12. Bxe5 {[%emt 0:01:44]} Qxe5 {[%emt 0:00:05]} 13. Re1 {[%emt 0:00:02]} Qf6 {[%emt 0:06:07]} 14. c4 {[%emt 0:00:33]} Bd7 {[%emt 0:11:41]} 15. cxd5 {[%emt 0:09:32]} cxd5 {[%emt 0:00:04]} 16. Nc3 {[%emt 0:00:12]} Be7 {[%emt 0:04:33]} 17. Qc2 {[%emt 0:01:34]} g6 {[%emt 0:03:23]} 18. Qe2 {[%emt 0:00:49]} Kf8 {[%emt 0:01:59]} 19. Qg4 {[%emt 0:06:32]} Qh4 {[%emt 0:09:22]} 20. Qf3 {[%emt 0:02:03]} Kg7 {[%emt 0:06:29]} 21. a3 {[%emt 0:08:25]} Bf6 {[%emt 0:09:21]} 22. Rac1 {[%emt 0:02:14]} Rhc8 {[%emt 0:04:17]} 23. Ba6 {[%emt 0:05:13]} Rd8 {[%emt 0:07:43]} 24. b4 {[%emt 0:02:31]} Qd4 {[%emt 0:03:08]} 25. Red1 {[%emt 0:04:57]} Qb6 {[%emt 0:01:24]} 26. b5 {[%emt 0:02:42]} Qa5 {[%emt 0:03:59]} 27. a4 {[%emt 0:05:16]} Bc8 {[%emt 0:00:39]} 28. Qd3 {[%emt 0:03:33]} Bxa6 {[%emt 0:00:44]} 29. bxa6 {[%emt 0:00:03]} Rab8 {[%emt 0:03:58]} 30. Ne2 {[%emt 0:05:03]} Rb6 {[%emt 0:01:48]} 31. Qg3 {[%emt 0:04:45]} Rxa6 {[%emt 0:01:02]} 32. Nf4 {[%emt 0:00:20]} Kg8 {[%emt 0:01:16]} 33. Nh5 {[%emt 0:00:17]} Bh8 {[%emt 0:00:32]} 34. Rc7 {[%emt 0:00:49]} Qxa4 {[%emt 0:00:59]} 35. Rdc1 {[%emt 0:00:33]} Rf8 {[%emt 0:00:45]} 36. Rc8 {[%emt 0:04:04]} Qa3 {[%emt 0:01:31]} 37. Qg5 {[%emt 0:03:51]} Qd6 {[%emt 0:00:42]} 38. Nf6+ {[%emt 0:02:25]} Bxf6 {[%emt 0:00:26]} 39. Qxf6 {[%emt 0:00:02]} Rb6 {[%emt 0:00:00]} 1-0